bitfinex/quotes_SOLUSD_20251201
["timestamp","ask_amount","ask_price","bid_price","bid_amount"]
[1764554494856,16.308864,127.96,127.95,3.46]
[1764554495574,37.07573798,127.96,127.95,3.46]
[1764554496167,24.81380616,127.96,127.95,3.46]
[1764554496352,37.07573798,127.96,127.95,3.46]
[1764554496554,36.38573798,127.96,127.95,3.46]
[1764554496752,16.308864,127.96,127.95,64.96]
[1764554496974,16.308864,127.96,127.95,61.5]
[1764554498051,24.81380616,127.96,127.95,61.5]
[1764554498251,37.07573798,127.96,127.95,61.5]
[1764554498566,36.38573798,127.96,127.95,61.5]
[1764554499151,16.308864,127.96,127.95,65.67]
[1764554499570,16.308864,127.96,127.95,64.96]
[1764554500655,7.81433857,127.97,127.95,64.96]
[1764554500857,7.81433857,127.97,127.96,0.71]
[1764554501061,7.81433857,127.97,127.95,65.67]
[1764554501674,7.81127948,128.02,127.96,12.97193182]
[1764554501972,0.69,128.06,128.01,12.26193182]
[1764554501973,7.80999433,128.05,128.01,12.26193182]
[1764554502151,20.07192615,128.05,127.98,16.308864]
[1764554502346,12.26193182,128.04,127.99,16.45193182]
[1764554502553,12.26193182,128.04,127.99,3.48]
[1764554502554,12.26193182,128.03,127.99,3.48]
[1764554502754,0.69,128.04,128.0,12.97193182]
[1764554502956,39.59554973,128.05,128.0,12.97193182]
[1764554503154,43.64248191,128.05,128.01,0.71]
[1764554503358,43.64248191,128.05,128.02,3.48]
[1764554503559,44.33248191,128.05,128.02,3.48]
[1764554503780,43.64248191,128.05,128.02,4.19]
[1764554503972,44.33248191,128.05,128.02,4.19]
[1764554504150,7.80866531,128.07,128.03,0.71]
[1764554504349,7.80866531,128.07,128.04,12.26193182]
[1764554504564,7.80866531,128.07,128.05,3.48]
[1764554504767,24.11752931,128.07,128.05,4.19]
[1764554505167,24.11752931,128.07,128.05,3.48]
[1764554505168,7.80866531,128.07,128.05,3.48]
[1764554505364,8.49866531,128.07,128.05,3.48]
[1764554505572,16.308864,128.06,128.05,3.48]
[1764554505775,29.26079582,128.06,128.04,3.48]
[1764554506173,0.69,128.05,128.02,0.71]
[1764554506374,0.69,128.05,128.03,3.48]
[1764554506570,12.95193182,128.05,128.03,3.48]
[1764554506775,29.26079582,128.05,128.03,3.48]
[1764554507079,12.95193182,128.04,128.01,3.48]
[1764554507382,12.26193182,128.03,128.01,3.48]
[1764554507582,12.95193182,128.04,128.01,3.48]
[1764554508366,12.26193182,128.04,128.01,3.48]
[1764554508566,0.69,128.03,128.01,3.48]
[1764554509792,20.7631245,128.03,128.01,64.98]
[1764554510088,0.69,128.02,128.01,61.5]
[1764554511187,16.308864,128.02,128.01,61.5]
[1764554511960,16.308864,128.02,128.01,64.96]
[1764554512760,20.76214655,128.04,128.01,64.96]
[1764554512959,7.80965169,128.05,128.02,0.71]
[1764554513470,24.80851569,128.05,128.01,4.17]
[1764554513672,24.80851569,128.05,128.01,16.43193182]
[1764554513902,37.07044751,128.05,128.01,4.17]
[1764554514266,37.07044751,128.05,128.02,3.46]
[1764554515774,0.68,128.04,128.02,3.46]
[1764554516285,12.94193182,128.04,128.02,3.46]
[1764554516678,0.68,128.04,128.02,3.46]
[1764554516878,12.94193182,128.04,128.02,3.46]
[1764554517179,7.81025901,128.04,128.02,3.46]
[1764554518475,8.49025901,128.04,128.02,3.46]
[1764554518673,7.81025901,128.04,128.02,3.46]
[1764554519262,16.308864,128.05,128.03,0.68]
[1764554519467,16.308864,128.05,128.02,24.21290513]
[1764554519975,24.11846795,128.05,128.02,3.46]
[1764554520291,0.68,128.04,128.03,3.46]
[1764554520674,24.11846795,128.05,128.03,3.46]
[1764554521171,0.68,128.04,128.02,3.46]
[1764554521380,24.79846795,128.05,128.02,3.46]
[1764554521570,0.68,128.04,128.02,3.46]
[1764554522172,8.49020393,128.04,128.01,3.46]
[1764554522580,8.49020393,128.04,128.01,4.14]
[1764554522892,7.81020393,128.04,128.02,12.94193182]
[1764554523387,7.81020393,128.04,128.02,61.5]
[1764554524095,24.11843965,128.05,128.03,0.68]
[1764554524308,16.308864,128.05,128.04,3.46]
[1764554524871,24.79831343,128.05,128.03,61.5]
[1764554525098,0.68,128.04,128.03,61.5]
[1764554526295,8.49005935,128.04,128.03,61.5]
[1764554529080,11.30338309,128.04,128.02,64.96]
[1764554529278,3.49332374,128.03,128.02,61.5]
[1764554530299,16.308864,128.01,127.99,3.46]
[1764554530500,19.12218774,128.01,127.99,64.96]
[1764554530700,19.80218774,128.01,127.99,64.96]
[1764554531003,16.988864,128.0,127.99,61.5]
[1764554531404,19.80218774,128.0,127.99,61.5]
[1764554532902,19.80218774,128.0,127.96,64.96]
[1764554533084,11.30643413,127.99,127.96,64.96]
[1764554533606,11.30643413,127.99,127.96,65.64]
[1764554533798,8.49311039,127.99,127.96,65.64]
[1764554533986,7.81311039,127.99,127.96,64.96]
[1764554534186,24.1215058,128.0,127.97,0.68]
[1764554534386,24.1215058,128.0,127.96,75.58810696]
[1764554534387,24.8015058,128.0,127.98,3.46]
[1764554534609,27.61482954,128.0,127.98,3.46]
[1764554534822,16.308864,128.0,127.98,3.46]
[1764554535111,16.308864,128.0,127.99,0.68]
[1764554535284,8.49071959,128.03,127.99,62.18]
[1764554535482,7.81021156,128.04,127.99,176.50633054]
[1764554535694,11.3035353,128.04,128.0,4.14]
[1764554536003,2.81332374,128.02,127.97,0.68]
[1764554536212,2.81332374,128.02,127.98,3.46]
[1764554536403,0.68,128.01,127.98,3.46]
[1764554536713,0.68,128.01,127.98,4.14]
[1764554537095,3.49332374,128.01,127.98,4.14]
[1764554537406,2.81332374,128.0,127.98,3.46]
[1764554537605,0.68,128.0,127.98,3.46]
[1764554537802,26.93423228,128.01,127.98,3.46]
[1764554538105,0.68,128.0,127.98,3.46]
[1764554538596,31.94153027,128.01,127.98,3.46]
[1764554538800,16.308864,128.01,127.99,0.68]
[1764554539203,24.1207552,128.01,127.98,4.14]
[1764554540013,32.62137693,128.01,127.98,3.46]
[1764554540311,7.82062173,127.99,127.94,20.21997114]
[1764554540499,7.82062173,127.99,127.96,3.46]
[1764554540813,0.68,127.98,127.96,3.46]
[1764554540987,8.50062173,127.99,127.96,64.96]
[1764554541312,16.31422215,127.99,127.96,64.96]
[1764554541509,15.63422215,127.99,127.96,64.96]
[1764554541690,16.31422215,127.99,127.96,64.96]
[1764554542706,15.63422215,127.99,127.96,64.96]
[1764554542896,8.50062173,127.98,127.96,64.96]
[1764554544101,0.68,127.98,127.96,64.96]
[1764554544795,8.49415983,127.98,127.96,64.96]
[1764554546015,16.31478156,127.98,127.96,64.96]
[1764554546218,8.49415983,127.98,127.96,64.96]
[1764554546394,16.31478156,127.98,127.96,64.96]
[1764554548607,32.61364556,127.98,127.96,61.5]
[1764554548926,16.30495321,127.97,127.93,65.16]
[1764554549120,7.82062173,127.96,127.93,65.16]
[1764554549419,7.82062173,127.95,127.93,65.16]
[1764554549714,8.49062173,127.95,127.93,65.16]
[1764554550011,8.49062173,127.96,127.93,65.16]
[1764554550915,8.49062173,127.96,127.93,0.2]
[1764554550916,31.94564955,127.94,127.93,0.2]
[1764554551300,32.61564955,127.94,127.93,0.2]
[1764554552333,24.12502782,127.94,127.93,3.66]
[1764554552812,32.61564955,127.94,127.93,3.66]
[1764554553122,32.61564955,127.94,127.93,0.2]
[1764554553419,24.79502782,127.94,127.93,0.2]
[1764554553604,32.61564955,127.94,127.93,0.2]
[1764554555424,16.308864,127.95,127.93,0.92]
[1764554555610,8.49062173,127.95,127.94,3.46]
[1764554555921,8.49062173,127.95,127.94,64.96]
[1764554556298,8.49062173,127.95,127.94,3.46]
[1764554557101,16.30617468,127.95,127.94,3.46]
[1764554557625,16.30617468,127.95,127.93,0.2]
[1764554557626,32.61503868,127.95,127.93,0.2]
[1764554557930,8.49062173,127.94,127.93,0.2]
[1764554558505,19.79824338,127.94,127.93,0.2]
[1764554559209,27.6144072,127.94,127.93,0.2]
[1764554560705,26.9444072,127.94,127.93,0.2]
[1764554561317,0.67,128.0,127.93,65.88]
[1764554561516,19.52972424,128.01,127.96,2.81937938]
[1764554561517,27.34161393,128.01,127.96,2.81937938]
[1764554561709,27.34161393,128.01,127.93,12.19651581]
[1764554561710,27.34161393,128.01,127.98,2.81937938]
[1764554561921,27.34161393,128.01,127.99,3.46]
[1764554562632,42.50662087,128.06,128.0,3.53937938]
[1764554562633,7.80944943,128.05,128.0,3.53937938]
[1764554562826,7.80944943,128.05,127.99,3.46]
[1764554562827,7.80944943,128.05,128.01,3.53937938]
[1764554563032,7.80944943,128.05,128.02,3.46]
[1764554563228,11.29882881,128.05,128.02,3.46]
[1764554563434,10.62882881,128.05,128.02,4.18]
[1764554563729,11.29882881,128.05,128.02,4.18]
[1764554563920,8.47944943,128.05,128.02,4.18]
[1764554564543,8.47944943,128.05,128.02,0.72]
[1764554564838,8.47944943,128.05,128.02,4.18]
[1764554565439,8.47944943,128.05,128.02,3.46]
[1764554565737,7.80944943,128.05,128.02,4.18]
[1764554565914,8.47944943,128.05,128.02,4.18]
[1764554567715,7.80944943,128.05,128.02,4.18]
[1764554568415,7.80944943,128.05,128.03,3.53937938]
[1764554568937,7.80944943,128.05,128.04,0.72]
[1764554569132,16.308864,128.06,128.04,0.72]
[1764554569324,7.80874016,128.07,128.04,3.53937938]
[1764554569726,7.80874016,128.07,128.04,0.72]
[1764554572244,24.21975691,128.08,128.04,0.72]
[1764554572537,24.88975691,128.08,128.04,0.72]
[1764554572838,32.69746826,128.08,128.04,0.72]
[1764554573542,8.48089291,128.07,128.04,61.5]
[1764554573720,16.28954292,128.07,128.04,64.96]
[1764554574443,16.28954292,128.07,128.04,65.68]
[1764554574827,16.308864,128.06,128.05,0.72]
[1764554575520,7.90772746,128.08,128.05,0.72]
[1764554575726,8.62772746,128.08,128.05,0.72]
[1764554575924,8.62772746,128.08,128.04,73.46089291]
[1764554576335,7.90772746,128.08,128.05,0.69]
[1764554576542,16.308864,128.07,128.05,8.50089291]
[1764554576733,16.308864,128.07,128.05,70.00089291]
[1764554576933,7.90764697,128.08,128.06,8.50089291]
[1764554576934,0.1,128.08,128.06,8.50089291]
[1764554577139,0.1,128.08,128.07,4.15]
[1764554577336,0.1,128.08,128.07,11.96089291]
[1764554577841,0.1,128.08,128.07,4.15]
[1764554578233,0.1,128.08,128.07,11.96089291]
[1764554578434,0.1,128.08,128.07,81.26912278]
[1764554579241,0.1,128.08,128.07,90.0790677]
[1764554579823,0.1,128.08,128.07,193.7790677]
[1764554580040,0.1,128.14,128.12,7.81089291]
[1764554580241,0.1,128.14,128.13,3.46]
[1764554580629,0.1,128.14,128.13,4.15]
[1764554580829,7.91089291,128.17,128.13,73.46089291]
[1764554580830,0.1,128.17,128.13,73.46089291]
[1764554581026,0.1,128.17,128.16,7.81089291]
[1764554581233,0.1,128.17,128.16,11.96089291]
[1764554582330,0.1,128.17,128.16,19.76363947]
[1764554582732,0.82,128.21,128.17,8.80994492]
[1764554582733,0.1,128.21,128.17,8.80994492]
[1764554582943,0.1,128.21,128.2,7.81089291]
[1764554583134,0.1,128.21,128.2,11.27089291]
[1764554583332,0.1,128.21,128.2,3.46]
[1764554583536,0.1,128.21,128.2,11.27089291]
[1764554583726,0.1,128.21,128.2,11.96089291]
[1764554583946,0.1,128.21,128.2,19.76120492]
[1764554586350,0.1,128.21,128.2,11.95031201]
[1764554586556,0.1,128.21,128.2,19.76120492]
[1764554587750,0.1,128.21,128.2,193.77114984]
[1764554588154,0.1,128.21,128.2,185.96025693]
[1764554588354,0.1,128.21,128.2,7.80031201]
[1764554588554,0.1,128.21,128.2,11.26031201]
[1764554588759,0.1,128.21,128.2,3.46]
[1764554588982,0.82,128.21,128.2,3.46]
[1764554589255,0.1,128.21,128.2,3.46]
[1764554590263,0.1,128.21,128.2,11.96089291]
[1764554590434,0.1,128.23,128.2,32.96374599]
[1764554590639,0.1,128.23,128.22,21.01343398]
[1764554590938,0.1,128.23,128.22,15.66348906]
[1764554591760,0.1,128.23,128.22,25.09343398]
[1764554592057,0.1,128.23,128.22,32.89252928]
[1764554593754,0.1,128.25,128.22,32.89252928]
[1764554593755,0.1,128.25,128.22,52.39026754]
[1764554594066,0.1,128.26,128.25,7.79727095]
[1764554594372,0.1,128.26,128.25,23.46076001]
[1764554594663,0.1,128.28,128.26,12.20348906]
[1764554594846,0.82,128.28,128.27,3.46]
[1764554595641,13.02348906,128.28,128.27,3.46]
[1764554595837,0.82,128.28,128.27,3.46]
[1764554596052,8.61544745,128.28,128.27,3.46]
[1764554597068,24.92431145,128.28,128.24,3.46]
[1764554597266,12.20348906,128.26,128.24,3.46]
[1764554597665,0.72,128.25,128.2,12.20348906]
[1764554597842,0.72,128.25,128.18,56.82558524]
[1764554597843,12.20348906,128.24,128.21,3.46]
[1764554598043,7.79848709,128.23,128.22,3.46]
[1764554598263,8.51848709,128.23,128.22,3.46]
[1764554598983,20.72197615,128.23,128.22,3.46]
[1764554599264,20.72197615,128.23,128.16,7.80256982]
[1764554599486,20.72197615,128.23,128.17,3.46]
[1764554599487,12.20348906,128.21,128.17,3.46]
[1764554599765,17.028864,128.22,128.12,12.20348906]
[1764554599766,12.20348906,128.18,128.12,12.20348906]
[1764554599979,20.00621672,128.17,128.13,3.46]
[1764554600138,12.20348906,128.16,128.13,3.46]
[1764554600345,0.72,128.16,128.13,3.46]
[1764554601067,7.80272766,128.17,128.13,11.88425711]
[1764554601247,8.52272766,128.17,128.13,24.08774617]
[1764554601447,0.72,128.17,128.13,24.08774617]
[1764554601648,0.72,128.17,128.13,23.46774617]
[1764554602667,0.72,128.17,128.14,12.20348906]
[1764554602969,7.80165197,128.18,128.15,12.20348906]
[1764554605679,16.308864,128.19,128.16,72.76272822]
[1764554605965,17.018864,128.19,128.16,72.76272822]
[1764554606168,8.50984656,128.21,128.16,85.58621728]
[1764554606349,8.50984656,128.21,128.17,12.20348906]
[1764554606781,0.71,128.21,128.18,12.20348906]
[1764554607076,17.018864,128.22,128.19,3.46]
[1764554607264,0.71,128.21,128.19,64.96]
[1764554607575,17.018864,128.22,128.19,64.96]
[1764554607878,17.018864,128.22,128.19,72.7607683]
[1764554608456,7.79799181,128.24,128.2,12.82348906]
[1764554608664,8.50799181,128.24,128.2,12.20348906]
[1764554608955,0.71,128.23,128.19,24.08425736]
[1764554610973,0.71,128.23,128.19,23.46425736]
[1764554611280,28.51235306,128.22,128.17,20.00562684]
[1764554611573,16.308864,128.22,128.18,3.46]
[1764554611779,8.50865554,128.23,128.14,12.20348906]
[1764554611780,12.20348906,128.19,128.14,12.20348906]
[1764554611979,16.308864,128.2,128.15,3.46]
[1764554611980,12.20348906,128.18,128.15,3.46]
[1764554612158,12.20348906,128.18,128.15,11.26314234]
[1764554612359,0.71,128.17,128.15,11.26314234]
[1764554612975,0.71,128.17,128.15,3.46]
[1764554612976,12.91348906,128.17,128.15,3.46]
[1764554613177,12.91348906,128.17,128.1,12.20348906]
[1764554613178,16.308864,128.16,128.1,12.20348906]
[1764554613479,8.80994492,128.21,128.14,12.20348906]
[1764554613707,0.2,128.29,128.11,4.08]
[1764554613708,0.71,128.26,128.2,12.20348906]
[1764554613993,0.71,128.26,128.19,25.11880892]
[1764554614160,0.71,128.26,128.22,12.20348906]
[1764554614362,0.71,128.26,128.22,3.46]
[1764554614671,12.20348906,128.24,128.22,3.46]
[1764554614865,12.20348906,128.25,128.22,3.46]
[1764554615067,12.20348906,128.23,128.21,3.48]
[1764554615365,12.20348906,128.22,128.21,3.48]
[1764554615568,28.51235306,128.23,128.21,3.48]
[1764554615985,0.71,128.22,128.21,3.48]
[1764554617283,20.71258436,128.22,128.21,3.48]
[1764554617672,20.71258436,128.22,128.18,3.48]
[1764554617874,12.20348906,128.2,128.15,20.00647198]
[1764554618075,12.20348906,128.2,128.16,3.48]
[1764554618281,0.71,128.19,128.16,3.48]
[1764554619787,12.20348906,128.18,128.16,61.5]
[1764554619992,12.20348906,128.18,128.15,3.48]
[1764554620193,0.71,128.17,128.13,20.00803452]
[1764554620397,12.91348906,128.17,128.14,3.48]
[1764554620777,0.71,128.16,128.14,3.48]
[1764554622086,12.91348906,128.16,128.12,20.00846262]
[1764554622290,12.91348906,128.15,128.13,3.48]
[1764554622699,0.71,128.25,128.17,16.308864]
[1764554622901,7.79605519,128.27,128.24,12.20348906]
[1764554623077,8.50605519,128.27,128.25,12.20348906]
[1764554623281,0.71,128.27,128.23,3.48]
[1764554623585,0.1,128.28,128.26,12.20348906]
[1764554623779,0.1,128.28,128.27,12.20348906]
[1764554623982,0.71,128.27,128.23,8.80994492]
[1764554624202,0.81,128.28,128.2,0.62]
[1764554624381,0.81,128.28,128.25,12.20348906]
[1764554624582,0.31,128.28,128.25,15.68348906]
[1764554624806,7.99492053,128.29,128.25,15.68348906]
[1764554624982,7.99492053,128.29,128.26,12.20348906]
[1764554625508,24.30378453,128.29,128.26,15.68348906]
[1764554626587,0.71,128.28,128.26,15.68348906]
[1764554627107,16.508864,128.29,128.26,11.27624957]
[1764554627404,16.508864,128.29,128.27,12.20348906]
[1764554627594,17.218864,128.29,128.27,12.20348906]
[1764554628312,0.2,128.29,128.28,12.20348906]
[1764554629385,0.2,128.29,128.27,7.79605443]
[1764554629896,0.91,128.29,128.28,3.48]
[1764554630291,16.308864,128.28,128.27,3.48]
[1764554630496,17.018864,128.28,128.27,3.48]
[1764554630703,17.018864,128.28,128.25,12.20348906]
[1764554630910,0.71,128.27,128.26,3.48]
[1764554631413,0.2,128.29,128.26,15.68348906]
[1764554631613,0.2,128.29,128.27,12.20348906]
[1764554631913,0.91,128.29,128.27,3.48]
[1764554632295,0.71,128.28,128.27,3.48]
[1764554632692,15.488864,128.29,128.27,15.68348906]
[1764554632891,0.2,128.32,128.28,8.80994492]
[1764554633101,0.2,128.32,128.31,25.11880892]
[1764554633414,0.2,128.32,128.31,40.80229798]
[1764554633708,0.2,128.32,128.31,20.08356973]
[1764554633913,0.2,128.32,128.26,38.98084332]
[1764554634095,0.2,128.32,128.28,19.48773136]
[1764554634292,0.2,128.32,128.31,12.20348906]
[1764554634802,0.2,128.32,128.31,15.68348906]
[1764554635710,0.86,128.32,128.31,12.20348906]
[1764554636102,0.86,128.32,128.31,3.48]
[1764554636523,0.86,128.32,128.26,19.49126111]
[1764554636817,0.66,128.31,128.28,12.20348906]
[1764554637010,0.66,128.31,128.29,12.20348906]
[1764554637218,0.66,128.31,128.3,3.48]
[1764554637391,0.66,128.31,128.26,7.79651461]
[1764554637595,0.66,128.31,128.28,12.20348906]
[1764554637792,27.93795902,128.31,128.26,3.48]
[1764554638011,12.20348906,128.29,128.26,3.48]
[1764554638316,12.20348906,128.28,128.23,12.20348906]
[1764554638500,12.20348906,128.27,128.24,3.48]
[1764554639035,16.308864,128.29,128.24,3.48]
[1764554639320,0.2,128.32,128.28,12.20348906]
[1764554639498,0.2,128.32,128.31,12.20348906]
[1764554640516,0.2,128.32,128.31,21.01343398]
[1764554641017,0.2,128.34,128.33,25.11880892]
[1764554641313,0.2,128.38,128.34,8.80994492]
[1764554641615,0.2,128.38,128.37,28.80341606]
[1764554641816,0.2,128.38,128.37,19.99347114]
[1764554642114,0.2,128.38,128.37,23.47347114]
[1764554642419,0.2,128.38,128.37,32.28341606]
[1764554642616,0.2,128.38,128.37,20.079927]
[1764554642795,0.2,128.38,128.37,32.28341606]
[1764554644296,0.2,128.38,128.37,19.99347114]
[1764554644619,0.86,128.38,128.37,23.47347114]
[1764554644815,0.86,128.38,128.36,19.99401115]
[1764554645015,0.66,128.37,128.27,1.99999999]
[1764554645207,0.66,128.37,128.34,12.20348906]
[1764554645413,0.66,128.37,128.35,3.48]
[1764554645608,20.65396261,128.37,128.33,3.48]
[1764554645811,7.9895104,128.38,128.33,3.48]
[1764554646019,0.86,128.38,128.36,12.20348906]
[1764554646313,0.66,128.37,128.32,16.308864]
[1764554646520,0.66,128.37,128.35,12.20348906]
[1764554646722,0.66,128.37,128.34,12.20348906]
[1764554646929,0.66,128.37,128.33,12.20348906]
[1764554647122,0.66,128.37,128.34,15.68348906]
[1764554647432,0.66,128.37,128.35,3.48]
[1764554647733,8.45046382,128.37,128.35,3.48]
[1764554647916,20.65395288,128.37,128.35,3.48]
[1764554648123,0.66,128.36,128.35,3.48]
[1764554648521,0.66,128.36,128.32,12.20348906]
[1764554648706,0.66,128.36,128.34,12.20348906]
[1764554649060,0.66,128.36,128.33,15.68348906]
[1764554649229,8.45046382,128.37,128.34,15.68348906]
[1764554649611,0.66,128.36,128.34,15.68348906]
[1764554650007,0.66,128.36,128.34,3.48]
[1764554650213,0.66,128.36,128.34,15.68348906]
[1764554650421,0.66,128.36,128.35,7.77356423]
[1764554650621,8.64948022,128.38,128.35,7.77356423]
[1764554650822,0.66,128.37,128.36,7.77356423]
[1764554651135,0.66,128.37,128.34,11.27161526]
[1764554651307,0.66,128.37,128.35,7.77356423]
[1764554651818,0.2,128.38,128.36,7.77356423]
[1764554652136,0.2,128.38,128.37,3.48]
[1764554652509,0.2,128.38,128.36,3.48]
[1764554652714,0.66,128.37,128.36,3.48]
[1764554655135,0.66,128.37,128.35,7.77356423]
[1764554655337,0.66,128.37,128.35,11.25356423]
[1764554656133,8.45015998,128.37,128.32,61.5]
[1764554656333,16.22372421,128.37,128.33,11.25356423]
[1764554656575,8.43356423,128.36,128.33,3.48]
[1764554657024,0.66,128.35,128.33,3.48]
[1764554657625,8.43356423,128.35,128.32,3.48]
[1764554657824,0.66,128.35,128.32,11.25356423]
[1764554658020,0.66,128.34,128.32,11.25356423]
[1764554658227,0.66,128.34,128.32,3.48]
[1764554658525,8.45183433,128.34,128.32,3.48]
[1764554659426,0.66,128.33,128.32,3.48]
[1764554660428,0.66,128.33,128.31,7.77356423]
[1764554660632,0.66,128.33,128.3,69.27356423]
[1764554660827,7.77356423,128.32,128.28,7.77356423]
[1764554661031,16.308864,128.35,128.31,15.54712846]
[1764554661337,0.2,128.38,128.37,16.308864]
[1764554661537,0.2,128.38,128.37,27.56242823]
[1764554661843,0.2,128.38,128.37,36.37237315]
[1764554662143,0.2,128.39,128.38,8.80994492]
[1764554662445,0.2,128.39,128.38,16.58350915]
[1764554662621,0.2,128.39,128.38,24.37288444]
[1764554662826,0.2,128.39,128.38,20.07932021]
[1764554663047,0.2,128.39,128.38,27.85288444]
[1764554664229,0.2,128.39,128.38,20.07932021]
[1764554664427,0.2,128.39,128.38,27.85288444]
[1764554664732,0.2,128.39,128.38,19.04293952]
[1764554665942,0.91,128.39,128.38,19.04293952]
[1764554666930,0.2,128.39,128.38,19.04293952]
[1764554667351,0.91,128.39,128.38,19.04293952]
[1764554668066,0.91,128.39,128.38,11.26937529]
[1764554668268,0.91,128.39,128.38,19.04293952]
[1764554669869,0.2,128.39,128.38,19.04293952]
[1764554670071,1e-08,128.41,128.38,11.26937529]
[1764554670241,1e-08,128.42,128.41,16.308864]
[1764554670440,0.2,128.44,128.42,8.80994492]
[1764554670643,0.2,128.44,128.43,24.08242823]
[1764554670846,0.2,128.44,128.43,19.788864]
[1764554671054,0.2,128.44,128.43,27.56242823]
[1764554671261,0.2,128.44,128.43,36.37237315]
[1764554671448,0.2,128.44,128.43,27.56242823]
[1764554672242,0.91,128.44,128.43,7.77356423]
[1764554672474,0.91,128.44,128.43,11.25356423]
[1764554672768,8.69585324,128.44,128.4,7.77356423]
[1764554672945,0.71,128.43,128.4,7.77356423]
[1764554673146,0.71,128.43,128.41,3.48]
[1764554674461,0.71,128.43,128.4,3.48]
[1764554674462,8.48356423,128.43,128.4,3.48]
[1764554674658,7.77356423,128.42,128.4,3.48]
[1764554674865,0.71,128.41,128.4,3.48]
[1764554675253,0.71,128.41,128.36,7.79044295]
[1764554675564,0.71,128.41,128.36,69.29044295]
[1764554675776,0.71,128.41,128.37,3.48]
[1764554675950,7.77356423,128.4,128.37,3.48]
[1764554676150,0.71,128.41,128.37,3.48]
[1764554676359,7.77356423,128.4,128.36,15.5639982]
[1764554676558,7.77356423,128.39,128.37,3.48]
[1764554676745,0.2,128.44,128.37,3.48]
[1764554676951,0.2,128.44,128.43,7.77356423]
[1764554677151,0.91,128.44,128.43,11.25356423]
[1764554677461,0.91,128.44,128.43,7.77356423]
[1764554677772,0.91,128.44,128.43,11.25356423]
[1764554679148,0.91,128.44,128.43,3.48]
[1764554679555,0.91,128.44,128.43,11.25356423]
[1764554680173,0.2,128.44,128.43,11.25356423]
[1764554680670,0.91,128.44,128.43,11.26634275]
[1764554680861,0.91,128.44,128.43,19.03990698]
[1764554681452,0.91,128.44,128.43,11.26634275]
[1764554681655,0.91,128.44,128.43,19.03990698]
[1764554682558,0.2,128.44,128.43,27.8498519]
[1764554683566,0.2,128.44,128.43,20.07628767]
[1764554684073,0.2,128.44,128.43,27.8498519]
[1764554684483,0.2,128.44,128.43,20.07628767]
[1764554684778,0.2,128.44,128.43,7.78634275]
[1764554684958,0.2,128.44,128.43,19.03990698]
[1764554685877,0.2,128.44,128.43,15.55990698]
[1764554686078,0.2,128.44,128.43,19.03990698]
[1764554686605,0.91,128.47,128.43,20.85492194]
[1764554686606,0.2,128.47,128.43,20.85492194]
[1764554686782,0.2,128.48,128.47,25.11880892]
[1764554686983,0.1,128.5,128.47,25.11880892]
[1764554686984,0.1,128.5,128.47,44.14593738]
[1764554687276,0.1,128.5,128.49,16.58350915]
[1764554687773,0.1,128.5,128.49,24.36621597]
[1764554687973,0.1,128.5,128.49,27.84621597]
[1764554688363,0.1,128.5,128.49,20.07265174]
[1764554688781,0.1,128.5,128.49,27.84621597]
[1764554689283,0.81,128.5,128.49,7.78270682]
[1764554689469,0.1,128.5,128.49,19.03627105]
[1764554689662,0.81,128.5,128.49,7.78270682]
[1764554689863,0.1,128.5,128.49,19.03627105]
[1764554690076,0.1,128.5,128.49,11.26270682]